[Event "NOR-ch Elite 2019"]
[Site "Larvik"]
[Date "2019.07.08"]
[Round "4.4"]
[White "Notkevich, Benjamin Arvola"]
[Black "Haug, Johannes"]
[Result "1-0"]
[ECO "A46"]
[WhiteElo "2497"]
[BlackElo "2431"]
[Annotator "ChessBase"]
[PlyCount "63"]
[EventDate "2019.07.05"]
[EventType "swiss"]
[EventCountry "NOR"]
[SourceTitle "playchess.com"]
[Source "ChessBase"]
[SourceQuality "1"]
[TimeControl "40/5400+30:1800+30"]

1. d4 {[%emt 0:00:00]} Nf6 {[%emt 0:02:14]} 2. g3 {[%emt 0:00:00]} e6 {[%emt 0:01:59]} 3. Bg2 {[%emt 0:00:00]} d5 {[%emt 0:00:08]} 4. Nf3 {[%emt 0:00:00]} b5 {[%emt 0:05:03]} 5. O-O {[%emt 0:00:32]} Nbd7 {[%emt 0:01:48]} 6. Bf4 {[%emt 0:11:29]} Bb7 {[%emt 0:08:15]} 7. Nbd2 {[%emt 0:14:38]} c5 {[%emt 0:07:53]} 8. c3 {[%emt 0:02:36]} Rc8 {[%emt 0:15:33]} 9. a4 {[%emt 0:07:35]} cxd4 {[%emt 0:07:05]} 10. cxd4 {[%emt 0:02:56]} b4 {[%emt 0:00:15]} 11. a5 {[%emt 0:12:59]} h6 {[%emt 0:11:00]} 12. Qa4 {[%emt 0:15:01]} Bc6 {[%emt 0:01:52]} 13. Qb3 {[%emt 0:01:33]} Nh5 {[%emt 0:00:59]} 14. Rfc1 {[%emt 0:03:57]} Nxf4 {[%emt 0:08:17]} 15. gxf4 {[%emt 0:00:03]} Be7 {[%emt 0:00:07]} 16. Qd3 {[%emt 0:07:21]} f5 {[%emt 0:04:14]} 17. Rc2 {[%emt 0:04:54]} Bb7 {[%emt 0:09:58]} 18. a6 {[%emt 0:00:06]} Rxc2 {[%emt 0:01:33]} 19. Qxc2 {[%emt 0:01:32]} Qc8 {[%emt 0:00:07]} 20. Qd3 {[%emt 0:00:59]} Bc6 {[%emt 0:03:52]} 21. Rc1 {[%emt 0:00:42]} O-O {[%emt 0:00:07]} 22. Nb3 {[%emt 0:07:19]} Qc7 {[%emt 0:00:40]} 23. Na5 {[%emt 0:04:11]} Qxa5 {[%emt 0:00:04]} 24. Rxc6 {[%emt 0:00:03]} Qa1+ {[%emt 0:02:14]} 25. Bf1 {[%emt 0:00:04]} Rf6 {[%emt 0:00:35]} 26. Rc8+ {[%emt 0:01:18]} Kf7 {[%emt 0:02:13]} 27. e3 {[%emt 0:00:53]} Rg6+ {[%emt 0:00:34]} 28. Kh1 {[%emt 0:00:02]} Qxb2 {[%emt 0:00:11]} 29. Rc2 {[%emt 0:00:13]} Qa3 {[%emt 0:05:06]} 30. Rc7 {[%emt 0:00:07]} Ke8 {[%emt 0:00:32]} 31. Qb5 {[%emt 0:01:31]} b3 {[%emt 0:00:28]} 32. Qxd7+ {[%emt 0:00:31]} 1-0

[Event "NOR-ch Elite 2019"]
[Site "Larvik"]
[Date "2019.07.08"]
[Round "4.5"]
[White "Stokke, Kjetil"]
[Black "Hauge, Lars Oskar"]
[Result "1-0"]
[ECO "A26"]
[WhiteElo "2336"]
[BlackElo "2476"]
[Annotator "ChessBase"]
[PlyCount "79"]
[EventDate "2019.07.05"]
[EventType "swiss"]
[EventCountry "NOR"]
[SourceTitle "playchess.com"]
[Source "ChessBase"]
[SourceQuality "1"]
[TimeControl "40/5400+30:1800+30"]

1. c4 {[%emt 0:02:44]} f5 {[%emt 0:03:05]} 2. Nc3 {[%emt 0:00:09]} Nf6 {[%emt 0:00:03]} 3. g3 {[%emt 0:00:13]} g6 {[%emt 0:00:05]} 4. Bg2 {[%emt 0:00:03]} Bg7 {[%emt 0:00:04]} 5. d3 {[%emt 0:00:09]} d6 {[%emt 0:00:08]} 6. e4 {[%emt 0:00:05]} Nc6 {[%emt 0:00:05]} 7. Nge2 {[%emt 0:00:07]} O-O {[%emt 0:00:11]} 8. O-O {[%emt 0:00:05]} e5 {[%emt 0:00:04]} 9. Nd5 {[%emt 0:00:04]} f4 {[%emt 0:04:09]} 10. gxf4 {[%emt 0:00:35]} Nh5 {[%emt 0:00:38]} 11. Kh1 {[%emt 0:00:08]} Nxf4 {[%emt 0:03:46]} 12. Ndxf4 {[%emt 0:04:50]} exf4 {[%emt 0:00:59]} 13. Bxf4 {[%emt 0:00:17]} Bxb2 {[%emt 0:02:17]} 14. Rb1 {[%emt 0:01:44]} Bg7 {[%emt 0:00:19]} 15. Be3 {[%emt 0:05:07]} Qh4 {[%emt 0:05:19]} 16. f3 {[%emt 0:04:19]} b6 {[%emt 0:03:46]} 17. Qd2 {[%emt 0:02:48]} Qe7 {[%emt 0:00:09]} 18. Bg5 {[%emt 0:04:14]} Qf7 {[%emt 0:01:33]} 19. f4 {[%emt 0:01:51]} Bg4 {[%emt 0:07:57]} 20. f5 {[%emt 0:10:40]} Bxe2 {[%emt 0:04:31]} 21. Qxe2 {[%emt 0:00:48]} Nd4 {[%emt 0:00:42]} 22. Qg4 {[%emt 0:01:40]} Be5 {[%emt 0:00:25]} 23. Bh6 {[%emt 0:06:01]} Rfe8 {[%emt 0:02:44]} 24. Rf2 {[%emt 0:03:25]} Kh8 {[%emt 0:02:58]} 25. f6 {[%emt 0:00:51]} Rab8 {[%emt 0:04:16]} 26. a4 {[%emt 0:01:41]} c6 {[%emt 0:10:05]} 27. h4 {[%emt 0:04:06]} a6 {[%emt 0:14:11]} 28. Bh3 {[%emt 0:00:49]} Rg8 {[%emt 0:01:37]} 29. Rbf1 {[%emt 0:07:07]} b5 {[%emt 0:01:15]} 30. axb5 {[%emt 0:01:01]} axb5 {[%emt 0:00:35]} 31. cxb5 {[%emt 0:02:15]} cxb5 {[%emt 0:00:05]} 32. Qd7 {[%emt 0:01:43]} Rgf8 {[%emt 0:03:39]} 33. Bxf8 {[%emt 0:13:17]} Rxf8 {[%emt 0:04:31]} 34. Qe7 {[%emt 0:00:18]} Kg8 {[%emt 0:01:26]} 35. Rc1 {[%emt 0:02:05]} b4 {[%emt 0:04:18]} 36. Rc4 {[%emt 0:03:39]} Bxf6 {[%emt 0:05:01]} 37. Qxf6 {[%emt 0:01:40]} Qxf6 {[%emt 0:00:18]} 38. Rxf6 {[%emt 0:00:07]} Rxf6 {[%emt 0:00:03]} 39. Rxd4 {[%emt 0:00:04]} Kg7 {[%emt 0:00:08]} 40. Kg2 {[%emt 0:00:27]} 1-0

[Event "NOR-ch Elite 2019"]
[Site "Larvik"]
[Date "2019.07.08"]
[Round "4.6"]
[White "Holm, Kristian Stuvik"]
[Black "Getz, Nicolai"]
[Result "1-0"]
[ECO "B09"]
[WhiteElo "2469"]
[BlackElo "2377"]
[Annotator "ChessBase"]
[PlyCount "125"]
[EventDate "2019.07.05"]
[EventType "swiss"]
[EventCountry "NOR"]
[SourceTitle "playchess.com"]
[Source "ChessBase"]
[SourceQuality "1"]
[TimeControl "40/5400+30:1800+30"]

1. d4 {[%emt 0:03:10]} d6 {[%emt 0:00:00]} 2. e4 {[%emt 0:00:07]} Nf6 {[%emt 0:00:00]} 3. Nc3 {[%emt 0:00:05]} g6 {[%emt 0:00:00]} 4. f4 {[%emt 0:00:05]} Bg7 {[%emt 0:00:10]} 5. Nf3 {[%emt 0:00:05]} c5 {[%emt 0:01:04]} 6. dxc5 {[%emt 0:00:09]} Qa5 {[%emt 0:00:07]} 7. Qd3 {[%emt 0:00:04]} Qxc5 {[%emt 0:02:59]} 8. Be3 {[%emt 0:00:24]} Qa5 {[%emt 0:00:05]} 9. Qb5+ {[%emt 0:00:05]} Qxb5 {[%emt 0:01:15]} 10. Bxb5+ {[%emt 0:00:12]} Nc6 {[%emt 0:00:22]} 11. O-O-O {[%emt 0:00:19]} Bg4 {[%emt 0:01:04]} 12. Rhf1 {[%emt 0:05:34]} O-O {[%emt 0:04:24]} 13. h3 {[%emt 0:00:44]} Bxf3 {[%emt 0:04:14]} 14. Rxf3 {[%emt 0:00:20]} Rfd8 {[%emt 0:17:29]} 15. g4 {[%emt 0:09:43]} a6 {[%emt 0:01:38]} 16. Be2 {[%emt 0:03:04]} Rac8 {[%emt 0:10:24]} 17. Bb6 {[%emt 0:06:43]} Re8 {[%emt 0:00:16]} 18. Bf2 {[%emt 0:07:34]} h6 {[%emt 0:04:47]} 19. Kb1 {[%emt 0:28:40]} b5 {[%emt 0:16:35]} 20. a3 {[%emt 0:03:10]} Na5 {[%emt 0:06:59]} 21. e5 {[%emt 0:11:37]} dxe5 {[%emt 0:00:19]} 22. fxe5 {[%emt 0:00:02]} Nh7 {[%emt 0:00:06]} 23. Re3 {[%emt 0:00:08]} Nf8 {[%emt 0:03:17]} 24. Bg3 {[%emt 0:02:24]} Nc4 {[%emt 0:00:23]} 25. Bxc4 {[%emt 0:00:47]} Rxc4 {[%emt 0:00:06]} 26. Re4 {[%emt 0:01:39]} Rc6 {[%emt 0:04:41]} 27. a4 {[%emt 0:00:56]} bxa4 {[%emt 0:00:33]} 28. Rxa4 {[%emt 0:00:06]} g5 {[%emt 0:06:07]} 29. Ne4 {[%emt 0:04:25]} Ne6 {[%emt 0:01:54]} 30. Rd5 {[%emt 0:02:50]} Rd8 {[%emt 0:01:58]} 31. Rxd8+ {[%emt 0:00:17]} Nxd8 {[%emt 0:00:01]} 32. Nf2 {[%emt 0:01:58]} Ne6 {[%emt 0:05:34]} 33. Nd3 {[%emt 0:00:13]} Nc7 {[%emt 0:00:17]} 34. c3 {[%emt 0:00:59]} Nd5 {[%emt 0:00:26]} 35. Rd4 {[%emt 0:02:57]} e6 {[%emt 0:00:49]} 36. c4 {[%emt 0:00:45]} Ne3 {[%emt 0:00:11]} 37. b3 {[%emt 0:00:35]} Bf8 {[%emt 0:05:33]} 38. Re4 {[%emt 0:01:32]} Ng2 {[%emt 0:00:53]} 39. Re2 {[%emt 0:02:43]} Nh4 {[%emt 0:00:04]} 40. Bxh4 {[%emt 0:00:03]} gxh4 {[%emt 0:00:05]} 41. Kc2 {[%emt 0:30:21]} Kg7 {[%emt 0:05:18]} 42. Kc3 {[%emt 0:00:00]} h5 {[%emt 0:05:11]} 43. gxh5 {[%emt 0:00:00]} Kh6 {[%emt 0:00:06]} 44. Rg2 {[%emt 0:00:00]} Kxh5 {[%emt 0:01:21]} 45. Rg8 {[%emt 0:00:00]} Rc8 {[%emt 0:02:45]} 46. Rg4 {[%emt 0:00:00]} Be7 {[%emt 0:01:28]} 47. Rg7 {[%emt 0:00:00]} Rc7 {[%emt 0:00:10]} 48. Rg8 {[%emt 0:00:00]} Kh6 {[%emt 0:00:50]} 49. Ra8 {[%emt 0:00:00]} Kg6 {[%emt 0:00:47]} 50. Rxa6 {[%emt 0:00:00]} Kf5 {[%emt 0:00:04]} 51. Ra1 {[%emt 0:00:00]} Ke4 {[%emt 0:00:48]} 52. b4 {[%emt 0:00:00]} Kf3 {[%emt 0:02:40]} 53. c5 {[%emt 0:00:00]} Kg3 {[%emt 0:00:39]} 54. Kc4 {[%emt 0:00:00]} Kxh3 {[%emt 0:03:14]} 55. b5 {[%emt 0:00:00]} Kg3 {[%emt 0:00:15]} 56. b6 {[%emt 0:00:00]} Rc8 {[%emt 0:00:03]} 57. b7 {[%emt 0:00:00]} Rb8 {[%emt 0:00:06]} 58. c6 {[%emt 0:00:00]} Bd8 {[%emt 0:00:03]} 59. Rg1+ {[%emt 0:00:00]} Kf3 {[%emt 0:01:47]} 60. Rf1+ {[%emt 0:00:00]} Kg3 {[%emt 0:00:14]} 61. Nc5 {[%emt 0:00:00]} h3 {[%emt 0:04:10]} 62. Na6 {[%emt 0:00:00]} Kg2 {[%emt 0:00:07]} 63. Rd1 {[%emt 0:00:00]} 1-0

[Event "NOR-ch Elite 2019"]
[Site "Larvik"]
[Date "2019.07.08"]
[Round "4.7"]
[White "Christiansen, Johan-Sebastian"]
[Black "Mikalsen, Erlend"]
[Result "1-0"]
[ECO "B62"]
[WhiteElo "2548"]
[BlackElo "2404"]
[Annotator "RC"]
[PlyCount "59"]
[EventDate "2019.07.05"]
[EventType "swiss"]
[EventCountry "NOR"]
[SourceTitle "playchess.com"]
[Source "ChessBase"]
[SourceQuality "1"]
[TimeControl "40/5400+30:1800+30"]

1. e4 {[%emt 0:02:19]} c5 {[%emt 0:00:00]} 2. Nf3 {[%emt 0:00:22]} d6 {[%emt 0:00:00]} 3. d4 {[%emt 0:00:12]} cxd4 {[%emt 0:00:00]} 4. Nxd4 {[%emt 0:00:05]} Nf6 {[%emt 0:00:00]} 5. Nc3 {[%emt 0:00:05]} Nc6 {[%emt 0:00:00]} 6. Bg5 {[%emt 0:00:17]} e6 {[%emt 0:00:06]} 7. Qd3 {[%emt 0:00:31]} a6 {[%emt 0:11:59]} 8. Nxc6 {[%emt 0:00:40]} bxc6 {[%emt 0:00:05]} 9. O-O-O {[%emt 0:00:04]} Qa5 {[%emt 0:06:08]} 10. Qg3 {[%emt 0:00:31]} Be7 {[%emt 0:13:32]} 11. h4 {[%emt 0:03:35]} Rb8 {[%emt 0:07:31]} 12. Bc4 {[%emt 0:06:31]} h6 {[%emt 0:10:46]} 13. Bd2 {[%emt 0:03:50]} Qe5 {[%emt 0:11:18]} 14. Bf4 {[%emt 0:05:51]} Qc5 {[%emt 0:03:20]} 15. Bxd6 {[%emt 0:00:40]} Bxd6 {[%emt 0:00:18]} 16. Qxd6 {[%emt 0:00:08]} Qxd6 {[%emt 0:00:24]} 17. Rxd6 {[%emt 0:00:03]} Ke7 {[%emt 0:00:31]} 18. Rxc6 {[%emt 0:04:54]} a5 {[%emt 0:00:56]} 19. Rc7+ {[%emt 0:07:09]} Bd7 {[%emt 0:00:14]} 20. e5 {[%emt 0:04:48]} Ng4 {[%emt 0:00:04]} 21. Rd1 {[%emt 0:02:01]} Nxe5 {[%emt 0:00:17]} 22. Bb5 {[%emt 0:00:59]} Rhc8 {[%emt 0:00:53]} 23. Ra7 {[%emt 0:21:55]} Rxc3 {[%emt 0:01:16]} 24. bxc3 {[%emt 0:00:29]} Rxb5 {[%emt 0:00:04]} 25. f4 {[%emt 0:00:03]} Ke8 {[%emt 0:02:21]} 26. fxe5 {[%emt 0:00:28]} Bc6 {[%emt 0:00:04]} 27. Rd6 {[%emt 0:00:24]} Bxg2 {[%emt 0:00:17]} 28. Rdd7 {[%emt 0:00:07]} Rxe5 {[%emt 0:00:22]} 29. Re7+ {[%emt 0:00:07]} Kd8 {[%emt 0:00:31]} 30. Rxf7 {[%emt 0:00:06]} 1-0

[Event "NOR-ch Elite 2019"]
[Site "Larvik"]
[Date "2019.07.08"]
[Round "4.8"]
[White "Moen, Andreas G.R."]
[Black "Mihajlov, Sebastian"]
[Result "1/2-1/2"]
[ECO "D02"]
[WhiteElo "2322"]
[BlackElo "2375"]
[Annotator "NA"]
[PlyCount "22"]
[EventDate "2019.07.05"]
[EventType "swiss"]
[EventCountry "NOR"]
[SourceTitle "playchess.com"]
[Source "ChessBase"]
[SourceQuality "1"]
[TimeControl "40/5400+30:1800+30"]

1. Nf3 {[%emt 0:00:02]} Nf6 {[%emt 0:02:05]} 2. d4 {[%emt 0:00:56]} d5 {[%emt 0:02:53]} 3. g3 {[%emt 0:03:16]} c6 {[%emt 0:04:50]} 4. Bg2 {[%emt 0:00:35]} Bg4 {[%emt 0:00:25]} 5. Ne5 {[%emt 0:06:14]} Bf5 {[%emt 0:00:47]} 6. c4 {[%emt 0:05:59]} e6 {[%emt 0:00:15]} 7. Nc3 {[%emt 0:06:11]} Nbd7 {[%emt 0:03:12]} 8. Qb3 {[%emt 0:15:50]} Qb6 {[%emt 0:04:14]} 9. Nxd7 {[%emt 0:16:08]} Nxd7 {[%emt 0:01:06]} 10. Qxb6 {[%emt 0:05:35]} axb6 {[%emt 0:00:27]} 11. e4 {[%emt 0:01:40]} dxe4 {[%emt 0:00:16]} 1/2-1/2

[Event "NOR-ch Elite 2019"]
[Site "Larvik"]
[Date "2019.07.08"]
[Round "4.9"]
[White "Kaasen, Tor Fredrik"]
[Black "Ranaldi, Lucas"]
[Result "1/2-1/2"]
[ECO "A36"]
[WhiteElo "2376"]
[BlackElo "2262"]
[Annotator "NA"]
[PlyCount "122"]
[EventDate "2019.07.05"]
[EventType "swiss"]
[EventCountry "NOR"]
[SourceTitle "playchess.com"]
[Source "ChessBase"]
[SourceQuality "1"]
[TimeControl "40/5400+30:1800+30"]

1. c4 {[%emt 0:00:00]} c5 {[%emt 0:00:00]} 2. Nc3 {[%emt 0:00:13]} Nc6 {[%emt 0:00:00]} 3. g3 {[%emt 0:00:06]} g6 {[%emt 0:00:03]} 4. Bg2 {[%emt 0:00:13]} Bg7 {[%emt 0:00:06]} 5. b3 {[%emt 0:00:05]} e5 {[%emt 0:00:45]} 6. Bb2 {[%emt 0:01:17]} Nge7 {[%emt 0:00:08]} 7. e3 {[%emt 0:01:20]} d6 {[%emt 0:07:23]} 8. Nge2 {[%emt 0:02:35]} Be6 {[%emt 0:02:06]} 9. O-O {[%emt 0:04:32]} O-O {[%emt 0:04:52]} 10. Nd5 {[%emt 0:06:10]} Qd7 {[%emt 0:00:08]} 11. f4 {[%emt 0:10:12]} f5 {[%emt 0:22:02]} 12. d3 {[%emt 0:01:37]} Rae8 {[%emt 0:06:58]} 13. Qd2 {[%emt 0:02:02]} Kh8 {[%emt 0:02:07]} 14. a3 {[%emt 0:03:40]} b6 {[%emt 0:04:04]} 15. b4 {[%emt 0:01:05]} Bg8 {[%emt 0:12:29]} 16. Bc3 {[%emt 0:03:13]} Nd8 {[%emt 0:01:54]} 17. Rab1 {[%emt 0:06:57]} h6 {[%emt 0:03:10]} 18. b5 {[%emt 0:05:54]} Ne6 {[%emt 0:11:18]} 19. Qb2 {[%emt 0:03:55]} Nxd5 {[%emt 0:00:30]} 20. Bxd5 {[%emt 0:03:46]} Nd8 {[%emt 0:02:16]} 21. Bg2 {[%emt 0:02:06]} Kh7 {[%emt 0:01:10]} 22. Rbe1 {[%emt 0:03:15]} d5 {[%emt 0:04:40]} 23. cxd5 {[%emt 0:04:19]} Bxd5 {[%emt 0:00:35]} 24. e4 {[%emt 0:01:47]} fxe4 {[%emt 0:00:18]} 25. dxe4 {[%emt 0:00:11]} Bc4 {[%emt 0:00:24]} 26. a4 {[%emt 0:00:08]} Ne6 {[%emt 0:03:36]} 27. Bh3 {[%emt 0:03:07]} exf4 {[%emt 0:01:23]} 28. gxf4 {[%emt 0:06:27]} Bxe2 {[%emt 0:03:22]} 29. Bxe6 {[%emt 0:00:45]} Rxe6 {[%emt 0:03:20]} 30. Rxe2 {[%emt 0:00:16]} Bxc3 {[%emt 0:00:57]} 31. Qxc3 {[%emt 0:00:02]} Rd6 {[%emt 0:01:40]} 32. Qc2 {[%emt 0:02:50]} Rd4 {[%emt 0:01:03]} 33. Rg2 {[%emt 0:00:53]} Qe7 {[%emt 0:00:40]} 34. f5 {[%emt 0:01:36]} g5 {[%emt 0:00:33]} 35. h4 {[%emt 0:02:34]} Qxe4 {[%emt 0:00:23]} 36. Qxe4 {[%emt 0:00:11]} Rxe4 {[%emt 0:00:01]} 37. hxg5 {[%emt 0:00:08]} hxg5 {[%emt 0:00:18]} 38. Kh2 {[%emt 0:01:50]} Rf4 {[%emt 0:00:42]} 39. Rxf4 {[%emt 0:00:32]} gxf4 {[%emt 0:00:01]} 40. Rg5 {[%emt 0:00:08]} Kh6 {[%emt 0:00:56]} 41. Rg6+ {[%emt 0:30:05]} Kh5 {[%emt 0:06:11]} 42. Rg7 {[%emt 0:00:00]} c4 {[%emt 0:11:32]} 43. Rxa7 {[%emt 0:00:00]} Rc8 {[%emt 0:00:23]} 44. a5 {[%emt 0:00:00]} bxa5 {[%emt 0:02:24]} 45. b6 {[%emt 0:00:00]} Rb8 {[%emt 0:00:21]} 46. Rxa5 {[%emt 0:00:00]} Rxb6 {[%emt 0:00:08]} 47. Rc5 {[%emt 0:00:00]} Rb2+ {[%emt 0:01:00]} 48. Kh3 {[%emt 0:00:00]} Rb3+ {[%emt 0:00:42]} 49. Kg2 {[%emt 0:00:00]} Kg4 {[%emt 0:04:26]} 50. f6 {[%emt 0:00:00]} Rb2+ {[%emt 0:01:24]} 51. Kg1 {[%emt 0:00:54]} Rb7 {[%emt 0:03:05]} 52. Kf2 {[%emt 0:01:26]} Rb2+ {[%emt 0:01:40]} 53. Kg1 {[%emt 0:00:03]} Rb6 {[%emt 0:03:41]} 54. Kf2 {[%emt 0:06:21]} Rxf6 {[%emt 0:00:10]} 55. Rxc4 {[%emt 0:00:02]} Ra6 {[%emt 0:00:46]} 56. Rc2 {[%emt 0:00:07]} Rh6 {[%emt 0:00:13]} 57. Rc3 {[%emt 0:01:31]} Rh2+ {[%emt 0:00:12]} 58. Kg1 {[%emt 0:00:25]} Re2 {[%emt 0:01:18]} 59. Kf1 {[%emt 0:00:06]} Rb2 {[%emt 0:00:26]} 60. Ra3 {[%emt 0:00:10]} f3 {[%emt 0:00:33]} 61. Ra8 {[%emt 0:00:06]} Kg3 {[%emt 0:00:13]} 1/2-1/2

[Event "NOR-ch Elite 2019"]
[Site "Larvik"]
[Date "2019.07.08"]
[Round "4.10"]
[White "Andersen, Alf Roger"]
[Black "Tryggestad, Andreas Garberg"]
[Result "1/2-1/2"]
[ECO "B85"]
[WhiteElo "2149"]
[BlackElo "2336"]
[Annotator "NA"]
[PlyCount "185"]
[EventDate "2019.07.05"]
[EventType "swiss"]
[EventCountry "NOR"]
[SourceTitle "playchess.com"]
[Source "ChessBase"]
[SourceQuality "1"]
[TimeControl "40/5400+30:1800+30"]

1. e4 {[%emt 0:00:00]} c5 {[%emt 0:00:00]} 2. Nf3 {[%emt 0:00:00]} e6 {[%emt 0:00:00]} 3. d4 {[%emt 0:00:00]} cxd4 {[%emt 0:00:00]} 4. Nxd4 {[%emt 0:00:00]} Nc6 {[%emt 0:00:01]} 5. Nc3 {[%emt 0:00:27]} Qc7 {[%emt 0:00:05]} 6. Be2 {[%emt 0:00:23]} Nf6 {[%emt 0:00:06]} 7. Be3 {[%emt 0:00:45]} Be7 {[%emt 0:00:06]} 8. O-O {[%emt 0:02:26]} O-O {[%emt 0:00:08]} 9. f4 {[%emt 0:10:34]} d6 {[%emt 0:00:06]} 10. Kh1 {[%emt 0:08:35]} Bd7 {[%emt 0:02:15]} 11. Nb3 {[%emt 0:05:32]} a6 {[%emt 0:03:01]} 12. a4 {[%emt 0:02:53]} Nb4 {[%emt 0:07:06]} 13. Nd4 {[%emt 0:23:53]} d5 {[%emt 0:25:06]} 14. e5 {[%emt 0:03:36]} Ne8 {[%emt 0:02:42]} 15. a5 {[%emt 0:03:24]} f6 {[%emt 0:03:34]} 16. Bg4 {[%emt 0:07:06]} f5 {[%emt 0:04:21]} 17. Bf3 {[%emt 0:01:32]} g6 {[%emt 0:17:26]} 18. Na4 {[%emt 0:02:45]} Ng7 {[%emt 0:02:40]} 19. Nb6 {[%emt 0:03:39]} Rad8 {[%emt 0:00:01]} 20. c3 {[%emt 0:01:45]} Nc6 {[%emt 0:01:38]} 21. Bxd5 {[%emt 0:04:08]} Kh8 {[%emt 0:22:43]} 22. Nxd7 {[%emt 0:04:50]} Qxd7 {[%emt 0:00:53]} 23. Nxc6 {[%emt 0:00:46]} bxc6 {[%emt 0:00:19]} 24. Bc4 {[%emt 0:00:09]} Qb7 {[%emt 0:00:35]} 25. Qe2 {[%emt 0:00:26]} Ra8 {[%emt 0:00:16]} 26. Rad1 {[%emt 0:03:11]} c5 {[%emt 0:01:21]} 27. Rd2 {[%emt 0:03:59]} g5 {[%emt 0:01:56]} 28. fxg5 {[%emt 0:01:10]} Qc6 {[%emt 0:00:16]} 29. Bf4 {[%emt 0:01:49]} Qa4 {[%emt 0:00:44]} 30. Bxa6 {[%emt 0:01:36]} Qxa5 {[%emt 0:00:01]} 31. Bc4 {[%emt 0:00:57]} Qa4 {[%emt 0:00:18]} 32. Bb5 {[%emt 0:01:26]} Qa5 {[%emt 0:00:56]} 33. Bc4 {[%emt 0:00:08]} Qa4 {[%emt 0:00:06]} 34. b3 {[%emt 0:00:31]} Qe8 {[%emt 0:00:01]} 35. Qf3 {[%emt 0:01:51]} Qg6 {[%emt 0:00:05]} 36. Rd7 {[%emt 0:00:31]} Rae8 {[%emt 0:00:48]} 37. h4 {[%emt 0:01:03]} Nh5 {[%emt 0:00:01]} 38. Ra1 {[%emt 0:00:38]} h6 {[%emt 0:00:01]} 39. Raa7 {[%emt 0:00:34]} Nxf4 {[%emt 0:01:37]} 40. Qxf4 {[%emt 0:00:25]} hxg5 {[%emt 0:00:04]} 41. hxg5 {[%emt 0:12:18]} Rf7 {[%emt 0:00:26]} 42. Kg1 {[%emt 0:04:20]} Kg8 {[%emt 0:01:10]} 43. Qf3 {[%emt 0:03:23]} Kf8 {[%emt 0:07:33]} 44. Ra6 {[%emt 0:06:45]} Bxg5 {[%emt 0:01:25]} 45. Rxf7+ {[%emt 0:00:29]} Kxf7 {[%emt 0:00:02]} 46. Ra7+ {[%emt 0:01:57]} Re7 {[%emt 0:00:02]} 47. Rxe7+ {[%emt 0:00:24]} Bxe7 {[%emt 0:00:03]} 48. Kf1 {[%emt 0:00:50]} Qg5 {[%emt 0:00:30]} 49. Ke2 {[%emt 0:00:33]} f4 {[%emt 0:02:23]} 50. Qe4 {[%emt 0:00:14]} Qg4+ {[%emt 0:00:01]} 51. Kd2 {[%emt 0:00:53]} Bg5 {[%emt 0:01:44]} 52. Kc2 {[%emt 0:00:42]} Be7 {[%emt 0:05:59]} 53. Kb2 {[%emt 0:00:24]} Kf8 {[%emt 0:02:18]} 54. Ka3 {[%emt 0:00:58]} Kg7 {[%emt 0:08:00]} 55. Ka4 {[%emt 0:00:29]} Kf7 {[%emt 0:07:35]} 56. Kb5 {[%emt 0:00:26]} Kg7 {[%emt 0:00:32]} 57. Kc6 {[%emt 0:02:48]} Qh5 {[%emt 0:00:17]} 58. Kd7 {[%emt 0:00:40]} Bg5 {[%emt 0:00:21]} 59. Bxe6 {[%emt 0:00:23]} Qh8 {[%emt 0:00:02]} 60. Qb7 {[%emt 0:00:56]} Kg6 {[%emt 0:00:19]} 61. Qe4+ {[%emt 0:00:16]} Kg7 62. Qb7 {[%emt 0:00:38]} Kh6 {[%emt 0:00:17]} 63. Kd6 {[%emt 0:00:48]} Qd8+ {[%emt 0:00:11]} 64. Kxc5 {[%emt 0:00:29]} Qd3 {[%emt 0:02:23]} 65. Kb4 {[%emt 0:00:30]} Qe2 {[%emt 0:00:02]} 66. Qd5 {[%emt 0:00:25]} Be7+ {[%emt 0:00:01]} 67. Ka5 {[%emt 0:00:31]} Qa2+ {[%emt 0:01:09]} 68. Kb5 {[%emt 0:00:34]} Qe2+ {[%emt 0:00:16]} 69. Kb6 {[%emt 0:00:27]} Kg5 {[%emt 0:00:51]} 70. Bd7 {[%emt 0:00:28]} Bd8+ {[%emt 0:00:07]} 71. Kb7 {[%emt 0:00:22]} Kh4 {[%emt 0:00:18]} 72. Bc6 {[%emt 0:00:40]} Be7 {[%emt 0:00:38]} 73. Qf7 {[%emt 0:00:33]} Qxe5 {[%emt 0:00:08]} 74. Qh7+ {[%emt 0:00:26]} Kg3 {[%emt 0:00:10]} 75. Qd3+ {[%emt 0:00:25]} Kh2 {[%emt 0:00:11]} 76. Qe4 {[%emt 0:00:36]} Qf6 {[%emt 0:00:24]} 77. b4 {[%emt 0:00:23]} Bd6 {[%emt 0:00:34]} 78. Qh7+ {[%emt 0:00:34]} Kg1 {[%emt 0:00:06]} 79. c4 {[%emt 0:00:37]} Qd4 {[%emt 0:00:19]} 80. Bd5 {[%emt 0:00:26]} Be5 {[%emt 0:00:36]} 81. Qc2 {[%emt 0:00:32]} Bd6 {[%emt 0:00:08]} 82. Qb1+ {[%emt 0:00:22]} Kf2 {[%emt 0:00:00]} 83. Qc2+ {[%emt 0:00:36]} Kg1 {[%emt 0:00:00]} 84. Qg6 {[%emt 0:00:31]} Qe5 {[%emt 0:00:00]} 85. Qh7 {[%emt 0:00:31]} Bxb4 {[%emt 0:00:01]} 86. Qb1+ {[%emt 0:00:19]} Be1 {[%emt 0:00:01]} 87. Qe4 {[%emt 0:00:40]} Qg7+ {[%emt 0:00:10]} 88. Ka6 {[%emt 0:00:27]} Bd2 {[%emt 0:00:13]} 89. Qe2 {[%emt 0:00:38]} Be3 {[%emt 0:00:05]} 90. Qe1+ {[%emt 0:00:06]} Kh2 {[%emt 0:00:01]} 91. Qh4+ {[%emt 0:00:07]} Kg1 {[%emt 0:00:01]} 92. Qe1+ {[%emt 0:01:05]} Kh2 {[%emt 0:00:02]} 93. Qh4+ {[%emt 0:00:17]} 1/2-1/2